{"text_format":"1","workbook":"xlsx","n_sheets":4,"sheets":["СПИСОК ВКС","СПИСОК","ПО КОВРАМ","Лист3"],"not_rendered":{"charts":0,"images":2,"macros":1,"external_links":1,"defined_names":0,"comments":0,"pivot_tables":0},"unopened":[],"bounds":{"document_bytes":16777216,"sheet_cells":100000,"rows_first":2000,"rows_last":500,"rows_between":2000,"halvings":0,"cell_chars":16384,"cell_head_chars":4096},"cells_cut":0,"cells_raw":0,"read":"whole","date_system":"1900"}

{"sheet":"СПИСОК ВКС","index":0,"n_rows":120,"n_cols":5,"rows_kept":120,"cut":false,"hidden":false,"merged":[[0,0,0,4],[1,2,1,4],[2,0,2,4]]}
["ВСЕРОССИЙСКАЯ ФЕДЕРАЦИЯ САМБО"]
[null,"          СОСТАВ СУДЕЙСКОЙ                                                          .                   КОЛЛЕГИИ",{"$f":"[1]реквизиты!$A$2","v":"Всероссийские соревнования по спортивному и боевому самбо среди мужчин на призы УФСИН России"}]
[{"$f":"[1]регистрация!$A$3","v":"20-22 апреля 2019 г           г.Тверь"}]
["№ п/п","Ф.И.О.","Суд. Кат.","Должность","Регион"]
[1,"Романов Павел Алексеевич","МК","Главный судья","Санкт-Петербург"]
[2,"Мордовин Сергей","ВК","Гл.Секретарь","Р.Алтай, Майма"]
[3,"Завалищев Владимир","ВК","Зам. Гл. секретарь","Новосибирская.Новосибирск"]
[4,"Кудинов Александр","ВК","Рук.Ковра","Рязань"]
[5,"Вышегородцев Денис Евгеньевич","ВК","Рук.Ковра","Томская, Северск"]
[6,"Кызлаков Лев","РК","Рук.Ковра","Кемеровская, Новокузнецк"]
[7,"Жанфакуй Юрий","ВК","судья","Новосибирская, Новосибирск"]
[8,"Мордвинов Алексей","ВК","судья","Новосибирская, Новосибирск"]
[9,"Знаменский Григорий","ВК","судья","Красноярский, Красноярск"]
[10,"Меркулов Анатолий","ВК","судья","Новосибирская, Новосибирск"]
[11,"Митрохин Евгений","ВК","судья","Новосибирская.Новосибирск"]
[12,"Томилов Игорь","1к","судья","Новосибирская,Новосибирск"]
[13,"Курбатов Владимир","1к","судья","Кемеровская, Прокопьевск"]
[14,"Макагон Никита","1к","судья","Новосибирская, Новосибирск"]
[15,"Синатулин С.В.","1к","судья","Красноярск"]
[16,"Широков Дмитрий","1к","судья","Новосибирская, Новосибирск"]
[17,"Друнгис Максим","1к","судья","Новосибирская, Новосибирск"]
[18,"Рысенко Олег","1к","судья","Новосибирская, Бердск"]
[19,"Мулеев Александр","1к","судья","Новосибирская, Бердск"]
[20,"Тригубова Юля","1к","судья","Новосибирская, Бердск"]
[21,"Селянинов Андрей","2к","судья","Р.Хакасия, Абакан"]
[22,"Миягашев Павел","2к","судья","Р.Хакасия, Абакан"]
[23,"Нигматулин Р.","МК","Рук. ковра","Р.Алтай, Г-Алтайск"]
[null,"Чугреев Алексей Викторович","РК","Судья","Кстово"]
[null,"Степанов Игорь Михайлович","1К","Судья","Московская"]
[null,"Плисов Олег Викторович","1К","Судья","Ульяновская, Ульяновск"]
[null,"Аев Геннадий","РК","судья","Р.Хакасия, Абакан"]
[null,"Акулов Василий","1к","судья","Алтайский, Бийск"]
[null,"Александров Юрий","1к","судья","Новосибирская, Новосибирск"]
[null,"Алтухов Александр","1к","судья","Алтайский, Бийск"]
[null,"Бадмаев Владислав","1к","судья","Р.Бурятия, У-Уде"]
[null,"Бадмацыренов Дамдин","1к","судья","Забайкальский кр.,Чита"]
[null,"Байданов Амаду","1к","судья","Новосибирская, Новосибирск"]
[null,"Блинов Александр","1к","судья","Алтайский, Заринск"]
[null,"Будьков Дмитрий","1к","судья","Алтайский, Барнаул"]
[null,"Васёв Антон","1к","судья","Алтайский, Барнаул"]
[null,"Василянский Михаил","1к","судья","Красноярский, Красноярск"]
[null,"Величко Раиса","2к","судья","Алтайский, Бийск"]
[null,"Гаврилов Виктор","ВК","судья","Алтайский, Бийск"]
[null,"Горбунов Александр","МК","Зам.Гл.судьи","Омская, Омск"]
[null,"Гурулев Эдуард","1к","судья","Иркутская, Иркутск"]
[null,"Димитриенко Игорь","ВК","судья","Алтайский, Бийск"]
[null,"Доржитаров Юрий","1к","судья","Р.Бурятия, У-Уде"]
[null,"Дубинский Андрей","1к","судья","Иркутская, Иркутск"]
[null,"Дулин С.А.","РК","судья","Болотное"]
[null,"Дурыманов Николай","ВК","судья","Алтайский, Бийск"]
[null,"Евтушенко Дмитрий","1к","судья","Алтайский, Бийск"]
[null,"Емельянов Артем","1к","судья","Р.Алтай, Майма"]
[null,"Емикеев Сергей","1к","судья","Р.Алтай, Г-Алтайск"]
[null,"Иванов Михаил","1к","судья","Красноярский, Красноярск"]
[null,"Казаков А.Н.","РК","судья","Новосибирск"]
[null,"Казаков Алексей","ВК","судья","Новосибирская, Новосибирск"]
[null,"Кандрашова Олеся","1к","судья","Новосибирская, Новосибирск"]
[null,"Канунов Артур","ВК","судья","Р.Алтай, Г-Алтайск"]
[null,"Карпов Сергей","1к","судья","Новосибирская, Новосибирск"]
[null,"Кирих Сергей","1к","судья","Иркутская, Иркутск"]
[null,"Князев Алексей","1к","судья","Забайкальский кр.,"]
[null,"Кокшинов Амыр","1к","судья","Р.Алтай, Г-Алтайск"]
[null,"Константинов Эмиль","1к","судья","Р.Алтай, Г-Алтайск"]
[null,"Конунов Артур","ВК","судья","Респ.Алтай, Г-Алтайск"]
[null,"Костенко Алексей","1к","судья","Иркутская, Иркутск"]
[null,"Кочкин Игорь","МК","Зам.Гл.судьи","Иркутская, Иркутск"]
[null,"Кудачин Вадим ","1к","судья","Р.Алтай, Г-Алтайск"]
[null,"Куликов Виктор","1к","судья","Алтайский, Шипуново"]
[null,"Лебедев А.А.","МК","гл.судья","Москва"]
[null,"Липин Юрий","ВК","судья","Томская, Северск"]
[null,"Майхиев Евгений","1к","судья","Р.Алтай, Г-Алтайск"]
[null,"Малоедов В.А.","1к","судья","Новосибирск"]
[null,"Матвеев А.Б.","РК","зам. гл. судьи","Новосибирск"]
[null,"Мешкеев Эркемен","1к","судья","Р.Алтай, Г-Алтайск"]
[null,"Мулеев А.","1к","судья","Новосибирск"]
[null,"Нигматулин Р.","1к","судья","Новосибирск"]
[null,"Никулин Иван","1к","судья","Алтайский, Бийск"]
[null,"Параскивопуло Игорь","МК","Рук.Ковра","Кемеровская, Новокузнецк"]
[null,"Паринов Иван","1к","судья","Омская, Омск"]
[null,"Пенькович Никита","1к","судья","Иркутская, Иркутск"]
[null,"Рысенко О","1к","судья","Новосибирск"]
[null,"Салданов Владимир","РК","судья","Р.Бурятия, У-Уде"]
[null,"Салданов Степан","1к","судья","Р.Бурятия, У-Уде"]
[null,"Санжиев Амгалан","ВК","судья","Р.Бурятия, У-Уде"]
[null,"Санжиев Тумэн","МК","Рук.Ковра","Р.Бурятия, У-Уде"]
[null,"Соколов М.Б.","ВК","судья","Томск"]
[null,"Сунгатуллин Артур","1к","судья","Иркутская, Иркутск"]
[null,"Тарханов Александр","1к","судья","Иркутская, Иркутск"]
[null,"Теренин Павел","1к","судья","Алтайский, Бийск"]
[null,"Тихонова Светлана","1к","судья","Алтайский, Барнаул"]
[null,"Трескин Сергей","МК","Зам.Гл.судьи","Алтайский, Бийск"]
[null,"Тригубова Ю.Д.","2к","судья","Новосибирск"]
[null,"Филимонов Алексей","1к","судья","Томская, Томск"]
[null,"Фокин Алексей","1к","судья","Томская, Северск"]
[null,"Хрыкин Михаил","1к","судья","Красноярский, Красноярск"]
[null,"Цыганов Сергей","1к","судья","Новосибирская, Новосибирск"]
[null,"Шалюта Павел","1к","Зам.Гл.Секретаря","Алтайский, Бийск"]
[null,"Шаталов Владимир","МК","Рук.Ковра","Алтайский, Шипуново"]
[null,"Шатковский Эдуард","РК","судья","Иркутская, Иркутск"]
[null,"Шилин Сергей","1к","судья","Алтайский, Барнаул"]
[null,"Шиянов Сергей","1к","судья","Кемеровская, Кемерово"]
[null,"Шульц Алексей","1к","судья","Алтайский, Барнаул"]
[null,"Юдин Александр","РК","судья","Иркутская, Иркутск"]
[null,"Ялчин Сергей","1к","судья","Р.Алтай, Г-Алтайск"]
[null,"Янковский Сергей","1к","судья","Новосибирская, Новосибирск"]
[]
[]
[]
[]
[]
[]
[]
[]
[]
[]
[]
[]
[]
[]
["Гл.судья,судья ВК                                                               А.А.Лебедев (Москва)",null,null,{"$f":"[1]реквизиты!$G$6","v":"Н.Н.Малышев "},{"$f":"[1]реквизиты!$G$7","v":"/Дубна /"}]

{"sheet":"СПИСОК","index":1,"n_rows":119,"n_cols":5,"rows_kept":119,"cut":false,"hidden":false,"merged":[[2,0,2,4],[0,0,0,4],[1,0,1,1],[1,2,1,4]]}
["ВСЕРОССИЙСКАЯ ФЕДЕРАЦИЯ САМБО"]
["СОСТАВ СУДЕЙСКОЙ КОЛЛЕГИИ",null,{"$f":"[1]реквизиты!$A$2","v":"Всероссийские соревнования по спортивному и боевому самбо среди мужчин на призы УФСИН России"}]
[{"$f":"[1]регистрация!$A$3","v":"20-22 апреля 2019 г           г.Тверь"}]
["№ п/п","Ф.И.О.","Суд. Кат.","Должность","Регион"]
[1,"Малышев Н.Н.","ВК","гл.судья","Московская, ЦФО"]
[2,"Тимошин А.С.","ВК","гл.секретарь","Ярославская, ЦФО"]
[3,"Антропов И.С.","ВК","рук.ковра","Ярославская, ЦФО"]
[4,"Кириллов С.В.","ВК","рук.ковра","Тверская, ЦФО"]
[5,"Ганчук Ю.Е.","ВК","рук.ковра","Москва, М"]
[6,"Степанов И.М.","1К","судья","Московская, ЦФО"]
[7,"Ильич Д.М.","ВК","судья","Рязанская, ЦФО"]
[8,"Судариков А.А.","ВК","судья","Тверская, ЦФО"]
[9,"Матюшенский А.В.","1К","судья","Тверская, ЦФО"]
[10,"Кольцова Я.А.","2К","судья","Тверская, ЦФО"]
[11,"Магомедов Ш.","1К","судья","Тверская, ЦФО"]
[12,"Петров С.Ю.","ВК","судья","Тверская, ЦФО"]
[13,"Крылова Е.","ВК","судья","Тверская, ЦФО"]
[14,"Мухамедов Р.Р.","1К","судья","Тверская, ЦФО"]
[15,"Новоселов И.","1К","судья","Тверская, ЦФО"]
[16,"Рыбинкин К.И.","1К","судья","Тверская, ЦФО"]
[17,"Куров Д.","1К","судья","Тверская, ЦФО"]
[18,"Ломиворотов Р.Н.","ВК","судья","Тульская, ЦФО"]
[19,null,null,"судья"]
[20,null,null,"судья"]
[21,null,null,"судья"]
[22,null,null,"судья"]
[]
[]
[]
[]
[]
[]
[]
[]
[]
[]
[]
[]
[]
[]
[]
[]
[]
[]
[]
[]
[]
[]
[]
[]
[]
[]
[]
[]
[]
[]
[]
[]
[]
[]
[]
[]
[]
[]
[]
[]
[]
[]
[]
[]
[]
[]
[]
[]
[]
[]
[]
[]
[]
[]
[]
[]
[]
[]
[]
[]
[]
[]
[]
[]
[]
[]
[]
[]
[]
[]
[]
[]
[]
[]
[]
[]
[]
[]
[]
[]
[]
[]
[]
[]
[]
[]
[]
[]
[]
[]
[]
[]
["Гл.судья,судья ВК                                                               А.А.Лебедев (Москва)",null,null,{"$f":"[1]реквизиты!$G$6","v":"Н.Н.Малышев "},{"$f":"[1]реквизиты!$G$7","v":"/Дубна /"}]

{"sheet":"ПО КОВРАМ","index":2,"n_rows":71,"n_cols":6,"rows_kept":71,"cut":false,"hidden":false,"merged":[[0,0,0,5]]}
["РАСПРЕДЕЛЕНИЕ СУДЕЙ ПО КОВРАМ"]
[]
["КОВЕР 1",4,{"$f":"VLOOKUP(B3,СПИСОК!A3:E193,2,FALSE)","v":"Кириллов С.В."},{"$f":"VLOOKUP(B3,СПИСОК!A1:E177,3,FALSE)","v":"ВК"},{"$f":"VLOOKUP(B3,СПИСОК!A2:E193,4,FALSE)","v":"рук.ковра"},{"$f":"VLOOKUP(B3,СПИСОК!A2:E195,5,FALSE)","v":"Тверская, ЦФО"}]
[]
[1,10,{"$f":"VLOOKUP(B5,СПИСОК!A2:E295,2,FALSE)","v":"Кольцова Я.А."},{"$f":"VLOOKUP(B5,СПИСОК!A1:E295,3,FALSE)","v":"2К"},{"$f":"VLOOKUP(B5,СПИСОК!A1:E295,4,FALSE)","v":"судья"},{"$f":"VLOOKUP(B5,СПИСОК!A1:E189,5,FALSE)","v":"Тверская, ЦФО"}]
[2,12,{"$f":"VLOOKUP(B6,СПИСОК!A2:E190,2,FALSE)","v":"Петров С.Ю."},{"$f":"VLOOKUP(B6,СПИСОК!A1:E296,3,FALSE)","v":"ВК"},{"$f":"VLOOKUP(B6,СПИСОК!A1:E295,4,FALSE)","v":"судья"},{"$f":"VLOOKUP(B6,СПИСОК!A1:E295,5,FALSE)","v":"Тверская, ЦФО"}]
[3,15,{"$f":"VLOOKUP(B7,СПИСОК!A2:E387,2,FALSE)","v":"Новоселов И."},{"$f":"VLOOKUP(B7,СПИСОК!A1:E295,3,FALSE)","v":"1К"},{"$f":"VLOOKUP(B7,СПИСОК!A1:E295,4,FALSE)","v":"судья"},{"$f":"VLOOKUP(B7,СПИСОК!A1:E295,5,FALSE)","v":"Тверская, ЦФО"}]
[4,17,{"$f":"VLOOKUP(B8,СПИСОК!A2:E388,2,FALSE)","v":"Куров Д."},{"$f":"VLOOKUP(B8,СПИСОК!A1:E295,3,FALSE)","v":"1К"},{"$f":"VLOOKUP(B8,СПИСОК!A1:E295,4,FALSE)","v":"судья"},{"$f":"VLOOKUP(B8,СПИСОК!A1:E295,5,FALSE)","v":"Тверская, ЦФО"}]
[5,null,{"$f":"VLOOKUP(B9,СПИСОК!A2:E389,2,FALSE)","v":{"$error":"#N/A"}},{"$f":"VLOOKUP(B9,СПИСОК!A1:E295,3,FALSE)","v":{"$error":"#N/A"}},{"$f":"VLOOKUP(B9,СПИСОК!A1:E295,4,FALSE)","v":{"$error":"#N/A"}},{"$f":"VLOOKUP(B9,СПИСОК!A1:E295,5,FALSE)","v":{"$error":"#N/A"}}]
[6,null,{"$f":"VLOOKUP(B10,СПИСОК!A1:E120,2,FALSE)","v":{"$error":"#N/A"}},{"$f":"VLOOKUP(B10,СПИСОК!A1:E295,3,FALSE)","v":{"$error":"#N/A"}},{"$f":"VLOOKUP(B10,СПИСОК!A1:E295,4,FALSE)","v":{"$error":"#N/A"}},{"$f":"VLOOKUP(B10,СПИСОК!A2:E295,5,FALSE)","v":{"$error":"#N/A"}}]
[7,null,{"$f":"VLOOKUP(B11,СПИСОК!A1:E391,2,FALSE)","v":{"$error":"#N/A"}},{"$f":"VLOOKUP(B11,СПИСОК!A1:E295,3,FALSE)","v":{"$error":"#N/A"}},{"$f":"VLOOKUP(B11,СПИСОК!A1:E295,4,FALSE)","v":{"$error":"#N/A"}},{"$f":"VLOOKUP(B11,СПИСОК!A1:E295,5,FALSE)","v":{"$error":"#N/A"}}]
[8,null,{"$f":"VLOOKUP(B12,СПИСОК!A1:E392,2,FALSE)","v":{"$error":"#N/A"}},{"$f":"VLOOKUP(B12,СПИСОК!A1:E295,3,FALSE)","v":{"$error":"#N/A"}},{"$f":"VLOOKUP(B12,СПИСОК!A1:E295,4,FALSE)","v":{"$error":"#N/A"}},{"$f":"VLOOKUP(B12,СПИСОК!A1:E392,5,FALSE)","v":{"$error":"#N/A"}}]
[9,null,{"$f":"VLOOKUP(B13,СПИСОК!A1:E287,2,FALSE)","v":{"$error":"#N/A"}},{"$f":"VLOOKUP(B13,СПИСОК!A1:E295,3,FALSE)","v":{"$error":"#N/A"}},{"$f":"VLOOKUP(B13,СПИСОК!A1:E295,4,FALSE)","v":{"$error":"#N/A"}},{"$f":"VLOOKUP(B13,СПИСОК!A1:E393,5,FALSE)","v":{"$error":"#N/A"}}]
[10,null,{"$f":"VLOOKUP(B14,СПИСОК!A1:E394,2,FALSE)","v":{"$error":"#N/A"}},{"$f":"VLOOKUP(B14,СПИСОК!A1:E295,3,FALSE)","v":{"$error":"#N/A"}},{"$f":"VLOOKUP(B14,СПИСОК!A1:E295,4,FALSE)","v":{"$error":"#N/A"}},{"$f":"VLOOKUP(B14,СПИСОК!A1:E394,5,FALSE)","v":{"$error":"#N/A"}}]
[11,null,{"$f":"VLOOKUP(B15,СПИСОК!A2:E395,2,FALSE)","v":{"$error":"#N/A"}},{"$f":"VLOOKUP(B15,СПИСОК!A2:E296,3,FALSE)","v":{"$error":"#N/A"}},{"$f":"VLOOKUP(B15,СПИСОК!A2:E296,4,FALSE)","v":{"$error":"#N/A"}},{"$f":"VLOOKUP(B15,СПИСОК!A2:E395,5,FALSE)","v":{"$error":"#N/A"}}]
[12,30,{"$f":"VLOOKUP(B16,СПИСОК!A3:E396,2,FALSE)","v":{"$error":"#N/A"}},{"$f":"VLOOKUP(B16,СПИСОК!A3:E297,3,FALSE)","v":{"$error":"#N/A"}},{"$f":"VLOOKUP(B16,СПИСОК!A3:E297,4,FALSE)","v":{"$error":"#N/A"}},{"$f":"VLOOKUP(B16,СПИСОК!A3:E396,5,FALSE)","v":{"$error":"#N/A"}}]
[13,31,{"$f":"VLOOKUP(B17,СПИСОК!A4:E397,2,FALSE)","v":{"$error":"#N/A"}},{"$f":"VLOOKUP(B17,СПИСОК!A4:E298,3,FALSE)","v":{"$error":"#N/A"}},{"$f":"VLOOKUP(B17,СПИСОК!A4:E298,4,FALSE)","v":{"$error":"#N/A"}},{"$f":"VLOOKUP(B17,СПИСОК!A4:E397,5,FALSE)","v":{"$error":"#N/A"}}]
[14,33,{"$f":"VLOOKUP(B18,СПИСОК!A5:E398,2,FALSE)","v":{"$error":"#N/A"}},{"$f":"VLOOKUP(B18,СПИСОК!A5:E299,3,FALSE)","v":{"$error":"#N/A"}},{"$f":"VLOOKUP(B18,СПИСОК!A5:E299,4,FALSE)","v":{"$error":"#N/A"}},{"$f":"VLOOKUP(B18,СПИСОК!A5:E398,5,FALSE)","v":{"$error":"#N/A"}}]
[]
[]
["КОВЕР 2",5,{"$f":"VLOOKUP(B21,СПИСОК!A6:E387,2,FALSE)","v":"Ганчук Ю.Е."},{"$f":"VLOOKUP(B21,СПИСОК!A1:E387,3,FALSE)","v":"ВК"},{"$f":"VLOOKUP(B21,СПИСОК!A2:E387,4,FALSE)","v":"рук.ковра"},{"$f":"VLOOKUP(B21,СПИСОК!A2:E389,5,FALSE)","v":"Москва, М"}]
[]
[1,6,{"$f":"VLOOKUP(B23,СПИСОК!A1:E295,2,FALSE)","v":"Степанов И.М."},{"$f":"VLOOKUP(B23,СПИСОК!A1:E295,3,FALSE)","v":"1К"},{"$f":"VLOOKUP(B23,СПИСОК!A1:E295,4,FALSE)","v":"судья"},{"$f":"VLOOKUP(B23,СПИСОК!A1:E295,5,FALSE)","v":"Московская, ЦФО"}]
[2,9,{"$f":"VLOOKUP(B24,СПИСОК!A1:E296,2,FALSE)","v":"Матюшенский А.В."},{"$f":"VLOOKUP(B24,СПИСОК!A1:E296,3,FALSE)","v":"1К"},{"$f":"VLOOKUP(B24,СПИСОК!A1:E296,4,FALSE)","v":"судья"},{"$f":"VLOOKUP(B24,СПИСОК!A1:E296,5,FALSE)","v":"Тверская, ЦФО"}]
[3,11,{"$f":"VLOOKUP(B25,СПИСОК!A6:E387,2,FALSE)","v":"Магомедов Ш."},{"$f":"VLOOKUP(B25,СПИСОК!A1:E387,3,FALSE)","v":"1К"},{"$f":"VLOOKUP(B25,СПИСОК!A1:E387,4,FALSE)","v":"судья"},{"$f":"VLOOKUP(B25,СПИСОК!A1:E387,5,FALSE)","v":"Тверская, ЦФО"}]
[4,null,{"$f":"VLOOKUP(B26,СПИСОК!A6:E388,2,FALSE)","v":{"$error":"#N/A"}},{"$f":"VLOOKUP(B26,СПИСОК!A1:E388,3,FALSE)","v":{"$error":"#N/A"}},{"$f":"VLOOKUP(B26,СПИСОК!A1:E388,4,FALSE)","v":{"$error":"#N/A"}},{"$f":"VLOOKUP(B26,СПИСОК!A1:E388,5,FALSE)","v":{"$error":"#N/A"}}]
[5,null,{"$f":"VLOOKUP(B27,СПИСОК!A6:E389,2,FALSE)","v":{"$error":"#N/A"}},{"$f":"VLOOKUP(B27,СПИСОК!A1:E389,3,FALSE)","v":{"$error":"#N/A"}},{"$f":"VLOOKUP(B27,СПИСОК!A1:E389,4,FALSE)","v":{"$error":"#N/A"}},{"$f":"VLOOKUP(B27,СПИСОК!A1:E389,5,FALSE)","v":{"$error":"#N/A"}}]
[6,null,{"$f":"VLOOKUP(B28,СПИСОК!A6:E390,2,FALSE)","v":{"$error":"#N/A"}},{"$f":"VLOOKUP(B28,СПИСОК!A1:E390,3,FALSE)","v":{"$error":"#N/A"}},{"$f":"VLOOKUP(B28,СПИСОК!A1:E390,4,FALSE)","v":{"$error":"#N/A"}},{"$f":"VLOOKUP(B28,СПИСОК!A1:E390,5,FALSE)","v":{"$error":"#N/A"}}]
[7,null,{"$f":"VLOOKUP(B29,СПИСОК!A6:E391,2,FALSE)","v":{"$error":"#N/A"}},{"$f":"VLOOKUP(B29,СПИСОК!A1:E391,3,FALSE)","v":{"$error":"#N/A"}},{"$f":"VLOOKUP(B29,СПИСОК!A1:E391,4,FALSE)","v":{"$error":"#N/A"}},{"$f":"VLOOKUP(B29,СПИСОК!A1:E391,5,FALSE)","v":{"$error":"#N/A"}}]
[8,null,{"$f":"VLOOKUP(B30,СПИСОК!A6:E392,2,FALSE)","v":{"$error":"#N/A"}},{"$f":"VLOOKUP(B30,СПИСОК!A1:E392,3,FALSE)","v":{"$error":"#N/A"}},{"$f":"VLOOKUP(B30,СПИСОК!A1:E392,4,FALSE)","v":{"$error":"#N/A"}},{"$f":"VLOOKUP(B30,СПИСОК!A1:E392,5,FALSE)","v":{"$error":"#N/A"}}]
[9,null,{"$f":"VLOOKUP(B31,СПИСОК!A6:E393,2,FALSE)","v":{"$error":"#N/A"}},{"$f":"VLOOKUP(B31,СПИСОК!A1:E393,3,FALSE)","v":{"$error":"#N/A"}},{"$f":"VLOOKUP(B31,СПИСОК!A1:E393,4,FALSE)","v":{"$error":"#N/A"}},{"$f":"VLOOKUP(B31,СПИСОК!A1:E393,5,FALSE)","v":{"$error":"#N/A"}}]
[10,null,{"$f":"VLOOKUP(B32,СПИСОК!A6:E394,2,FALSE)","v":{"$error":"#N/A"}},{"$f":"VLOOKUP(B32,СПИСОК!A1:E394,3,FALSE)","v":{"$error":"#N/A"}},{"$f":"VLOOKUP(B32,СПИСОК!A1:E394,4,FALSE)","v":{"$error":"#N/A"}},{"$f":"VLOOKUP(B32,СПИСОК!A1:E394,5,FALSE)","v":{"$error":"#N/A"}}]
[11,null,{"$f":"VLOOKUP(B33,СПИСОК!A7:E395,2,FALSE)","v":{"$error":"#N/A"}},{"$f":"VLOOKUP(B33,СПИСОК!A2:E395,3,FALSE)","v":{"$error":"#N/A"}},{"$f":"VLOOKUP(B33,СПИСОК!A2:E395,4,FALSE)","v":{"$error":"#N/A"}},{"$f":"VLOOKUP(B33,СПИСОК!A2:E395,5,FALSE)","v":{"$error":"#N/A"}}]
[12,null,{"$f":"VLOOKUP(B34,СПИСОК!A6:E396,2,FALSE)","v":{"$error":"#N/A"}},{"$f":"VLOOKUP(B34,СПИСОК!A3:E396,3,FALSE)","v":{"$error":"#N/A"}},{"$f":"VLOOKUP(B34,СПИСОК!A3:E396,4,FALSE)","v":{"$error":"#N/A"}},{"$f":"VLOOKUP(B34,СПИСОК!A3:E396,5,FALSE)","v":{"$error":"#N/A"}}]
[13,null,{"$f":"VLOOKUP(B35,СПИСОК!A14:E397,2,FALSE)","v":{"$error":"#N/A"}},{"$f":"VLOOKUP(B35,СПИСОК!A4:E397,3,FALSE)","v":{"$error":"#N/A"}},{"$f":"VLOOKUP(B35,СПИСОК!A4:E397,4,FALSE)","v":{"$error":"#N/A"}},{"$f":"VLOOKUP(B35,СПИСОК!A4:E397,5,FALSE)","v":{"$error":"#N/A"}}]
[14,null,{"$f":"VLOOKUP(B36,СПИСОК!A15:E398,2,FALSE)","v":{"$error":"#N/A"}},{"$f":"VLOOKUP(B36,СПИСОК!A5:E398,3,FALSE)","v":{"$error":"#N/A"}},{"$f":"VLOOKUP(B36,СПИСОК!A5:E398,4,FALSE)","v":{"$error":"#N/A"}},{"$f":"VLOOKUP(B36,СПИСОК!A5:E398,5,FALSE)","v":{"$error":"#N/A"}}]
[]
[]
["КОВЕР 3",3,{"$f":"VLOOKUP(B39,СПИСОК!A4:E994,2,FALSE)","v":"Антропов И.С."},{"$f":"VLOOKUP(B39,СПИСОК!A3:E491,3,FALSE)","v":"ВК"},{"$f":"VLOOKUP(B39,СПИСОК!A3:E491,4,FALSE)","v":"рук.ковра"},{"$f":"VLOOKUP(B39,СПИСОК!A3:E493,5,FALSE)","v":"Ярославская, ЦФО"}]
[]
[1,13,{"$f":"VLOOKUP(B41,СПИСОК!A1:E295,2,FALSE)","v":"Крылова Е."},{"$f":"VLOOKUP(B41,СПИСОК!A1:E295,3,FALSE)","v":"ВК"},{"$f":"VLOOKUP(B41,СПИСОК!A1:E295,4,FALSE)","v":"судья"},{"$f":"VLOOKUP(B41,СПИСОК!A1:E295,5,FALSE)","v":"Тверская, ЦФО"}]
[2,14,{"$f":"VLOOKUP(B42,СПИСОК!A1:E296,2,FALSE)","v":"Мухамедов Р.Р."},{"$f":"VLOOKUP(B42,СПИСОК!A1:E296,3,FALSE)","v":"1К"},{"$f":"VLOOKUP(B42,СПИСОК!A1:E296,4,FALSE)","v":"судья"},{"$f":"VLOOKUP(B42,СПИСОК!A1:E296,5,FALSE)","v":"Тверская, ЦФО"}]
[3,16,{"$f":"VLOOKUP(B43,СПИСОК!A1:E387,2,FALSE)","v":"Рыбинкин К.И."},{"$f":"VLOOKUP(B43,СПИСОК!A1:E387,3,FALSE)","v":"1К"},{"$f":"VLOOKUP(B43,СПИСОК!A1:E387,4,FALSE)","v":"судья"},{"$f":"VLOOKUP(B43,СПИСОК!A1:E387,5,FALSE)","v":"Тверская, ЦФО"}]
[4,18,{"$f":"VLOOKUP(B44,СПИСОК!A1:E388,2,FALSE)","v":"Ломиворотов Р.Н."},{"$f":"VLOOKUP(B44,СПИСОК!A1:E388,3,FALSE)","v":"ВК"},{"$f":"VLOOKUP(B44,СПИСОК!A1:E388,4,FALSE)","v":"судья"},{"$f":"VLOOKUP(B44,СПИСОК!A1:E388,5,FALSE)","v":"Тульская, ЦФО"}]
[5,null,{"$f":"VLOOKUP(B45,СПИСОК!A2:E389,2,FALSE)","v":{"$error":"#N/A"}},{"$f":"VLOOKUP(B45,СПИСОК!A1:E389,3,FALSE)","v":{"$error":"#N/A"}},{"$f":"VLOOKUP(B45,СПИСОК!A1:E389,4,FALSE)","v":{"$error":"#N/A"}},{"$f":"VLOOKUP(B45,СПИСОК!A1:E389,5,FALSE)","v":{"$error":"#N/A"}}]
[6,null,{"$f":"VLOOKUP(B46,СПИСОК!A1:E390,2,FALSE)","v":{"$error":"#N/A"}},{"$f":"VLOOKUP(B46,СПИСОК!A1:E390,3,FALSE)","v":{"$error":"#N/A"}},{"$f":"VLOOKUP(B46,СПИСОК!A1:E390,4,FALSE)","v":{"$error":"#N/A"}},{"$f":"VLOOKUP(B46,СПИСОК!A1:E390,5,FALSE)","v":{"$error":"#N/A"}}]
[7,13,{"$f":"VLOOKUP(B47,СПИСОК!A1:E391,2,FALSE)","v":"Крылова Е."},{"$f":"VLOOKUP(B47,СПИСОК!A1:E391,3,FALSE)","v":"ВК"},{"$f":"VLOOKUP(B47,СПИСОК!A1:E391,4,FALSE)","v":"судья"},{"$f":"VLOOKUP(B47,СПИСОК!A1:E391,5,FALSE)","v":"Тверская, ЦФО"}]
[8,18,{"$f":"VLOOKUP(B48,СПИСОК!A1:E392,2,FALSE)","v":"Ломиворотов Р.Н."},{"$f":"VLOOKUP(B48,СПИСОК!A1:E392,3,FALSE)","v":"ВК"},{"$f":"VLOOKUP(B48,СПИСОК!A1:E392,4,FALSE)","v":"судья"},{"$f":"VLOOKUP(B48,СПИСОК!A1:E392,5,FALSE)","v":"Тульская, ЦФО"}]
[9,18,{"$f":"VLOOKUP(B49,СПИСОК!A1:E393,2,FALSE)","v":"Ломиворотов Р.Н."},{"$f":"VLOOKUP(B49,СПИСОК!A1:E393,3,FALSE)","v":"ВК"},{"$f":"VLOOKUP(B49,СПИСОК!A1:E393,4,FALSE)","v":"судья"},{"$f":"VLOOKUP(B49,СПИСОК!A1:E393,5,FALSE)","v":"Тульская, ЦФО"}]
[10,null,{"$f":"VLOOKUP(B50,СПИСОК!A1:E394,2,FALSE)","v":{"$error":"#N/A"}},{"$f":"VLOOKUP(B50,СПИСОК!A1:E394,3,FALSE)","v":{"$error":"#N/A"}},{"$f":"VLOOKUP(B50,СПИСОК!A1:E394,4,FALSE)","v":{"$error":"#N/A"}},{"$f":"VLOOKUP(B50,СПИСОК!A1:E394,5,FALSE)","v":{"$error":"#N/A"}}]
[11,null,{"$f":"VLOOKUP(B51,СПИСОК!A2:E395,2,FALSE)","v":{"$error":"#N/A"}},{"$f":"VLOOKUP(B51,СПИСОК!A2:E395,3,FALSE)","v":{"$error":"#N/A"}},{"$f":"VLOOKUP(B51,СПИСОК!A2:E395,4,FALSE)","v":{"$error":"#N/A"}},{"$f":"VLOOKUP(B51,СПИСОК!A2:E395,5,FALSE)","v":{"$error":"#N/A"}}]
[12,null,{"$f":"VLOOKUP(B52,СПИСОК!A3:E396,2,FALSE)","v":{"$error":"#N/A"}},{"$f":"VLOOKUP(B52,СПИСОК!A3:E396,3,FALSE)","v":{"$error":"#N/A"}},{"$f":"VLOOKUP(B52,СПИСОК!A3:E396,4,FALSE)","v":{"$error":"#N/A"}},{"$f":"VLOOKUP(B52,СПИСОК!A3:E396,5,FALSE)","v":{"$error":"#N/A"}}]
[13,null,{"$f":"VLOOKUP(B53,СПИСОК!A4:E397,2,FALSE)","v":{"$error":"#N/A"}},{"$f":"VLOOKUP(B53,СПИСОК!A4:E397,3,FALSE)","v":{"$error":"#N/A"}},{"$f":"VLOOKUP(B53,СПИСОК!A4:E397,4,FALSE)","v":{"$error":"#N/A"}},{"$f":"VLOOKUP(B53,СПИСОК!A4:E397,5,FALSE)","v":{"$error":"#N/A"}}]
[14,null,{"$f":"VLOOKUP(B54,СПИСОК!A5:E398,2,FALSE)","v":{"$error":"#N/A"}},{"$f":"VLOOKUP(B54,СПИСОК!A5:E398,3,FALSE)","v":{"$error":"#N/A"}},{"$f":"VLOOKUP(B54,СПИСОК!A5:E398,4,FALSE)","v":{"$error":"#N/A"}},{"$f":"VLOOKUP(B54,СПИСОК!A5:E398,5,FALSE)","v":{"$error":"#N/A"}}]
[]
[]
["КОВЕР 4",5,{"$f":"VLOOKUP(B57,СПИСОК!A5:E198,2,FALSE)","v":"Ганчук Ю.Е."},{"$f":"VLOOKUP(B57,СПИСОК!A2:E595,3,FALSE)","v":"ВК"},{"$f":"VLOOKUP(B57,СПИСОК!A2:E595,4,FALSE)","v":"рук.ковра"},{"$f":"VLOOKUP(B57,СПИСОК!A2:E687,5,FALSE)","v":"Москва, М"}]
[]
[1,24,{"$f":"VLOOKUP(B59,СПИСОК!A2:E489,2,FALSE)","v":{"$error":"#N/A"}},{"$f":"VLOOKUP(B59,СПИСОК!A2:E489,3,FALSE)","v":{"$error":"#N/A"}},{"$f":"VLOOKUP(B59,СПИСОК!A2:E489,4,FALSE)","v":{"$error":"#N/A"}},{"$f":"VLOOKUP(B59,СПИСОК!A2:E489,5,FALSE)","v":{"$error":"#N/A"}}]
[2,35,{"$f":"VLOOKUP(B60,СПИСОК!A2:E490,2,FALSE)","v":{"$error":"#N/A"}},{"$f":"VLOOKUP(B60,СПИСОК!A2:E490,3,FALSE)","v":{"$error":"#N/A"}},{"$f":"VLOOKUP(B60,СПИСОК!A2:E490,4,FALSE)","v":{"$error":"#N/A"}},{"$f":"VLOOKUP(B60,СПИСОК!A2:E490,5,FALSE)","v":{"$error":"#N/A"}}]
[3,38,{"$f":"VLOOKUP(B61,СПИСОК!A2:E491,2,FALSE)","v":{"$error":"#N/A"}},{"$f":"VLOOKUP(B61,СПИСОК!A2:E491,3,FALSE)","v":{"$error":"#N/A"}},{"$f":"VLOOKUP(B61,СПИСОК!A2:E491,4,FALSE)","v":{"$error":"#N/A"}},{"$f":"VLOOKUP(B61,СПИСОК!A2:E491,5,FALSE)","v":{"$error":"#N/A"}}]
[4,23,{"$f":"VLOOKUP(B62,СПИСОК!A2:E492,2,FALSE)","v":{"$error":"#N/A"}},{"$f":"VLOOKUP(B62,СПИСОК!A2:E492,3,FALSE)","v":{"$error":"#N/A"}},{"$f":"VLOOKUP(B62,СПИСОК!A2:E492,4,FALSE)","v":{"$error":"#N/A"}},{"$f":"VLOOKUP(B62,СПИСОК!A2:E492,5,FALSE)","v":{"$error":"#N/A"}}]
[5,33,{"$f":"VLOOKUP(B63,СПИСОК!A2:E493,2,FALSE)","v":{"$error":"#N/A"}},{"$f":"VLOOKUP(B63,СПИСОК!A2:E493,3,FALSE)","v":{"$error":"#N/A"}},{"$f":"VLOOKUP(B63,СПИСОК!A2:E493,4,FALSE)","v":{"$error":"#N/A"}},{"$f":"VLOOKUP(B63,СПИСОК!A2:E493,5,FALSE)","v":{"$error":"#N/A"}}]
[6,null,{"$f":"VLOOKUP(B64,СПИСОК!A2:E494,2,FALSE)","v":{"$error":"#N/A"}},{"$f":"VLOOKUP(B64,СПИСОК!A2:E494,3,FALSE)","v":{"$error":"#N/A"}},{"$f":"VLOOKUP(B64,СПИСОК!A2:E494,4,FALSE)","v":{"$error":"#N/A"}},{"$f":"VLOOKUP(B64,СПИСОК!A2:E494,5,FALSE)","v":{"$error":"#N/A"}}]
[7,null,{"$f":"VLOOKUP(B65,СПИСОК!A2:E495,2,FALSE)","v":{"$error":"#N/A"}},{"$f":"VLOOKUP(B65,СПИСОК!A2:E495,3,FALSE)","v":{"$error":"#N/A"}},{"$f":"VLOOKUP(B65,СПИСОК!A2:E495,4,FALSE)","v":{"$error":"#N/A"}},{"$f":"VLOOKUP(B65,СПИСОК!A2:E495,5,FALSE)","v":{"$error":"#N/A"}}]
[8,null,{"$f":"VLOOKUP(B66,СПИСОК!A2:E496,2,FALSE)","v":{"$error":"#N/A"}},{"$f":"VLOOKUP(B66,СПИСОК!A2:E496,3,FALSE)","v":{"$error":"#N/A"}},{"$f":"VLOOKUP(B66,СПИСОК!A2:E496,4,FALSE)","v":{"$error":"#N/A"}},{"$f":"VLOOKUP(B66,СПИСОК!A2:E496,5,FALSE)","v":{"$error":"#N/A"}}]
[9,null,{"$f":"VLOOKUP(B67,СПИСОК!A2:E587,2,FALSE)","v":{"$error":"#N/A"}},{"$f":"VLOOKUP(B67,СПИСОК!A2:E587,3,FALSE)","v":{"$error":"#N/A"}},{"$f":"VLOOKUP(B67,СПИСОК!A2:E587,4,FALSE)","v":{"$error":"#N/A"}},{"$f":"VLOOKUP(B67,СПИСОК!A2:E587,5,FALSE)","v":{"$error":"#N/A"}}]
[10,null,{"$f":"VLOOKUP(B68,СПИСОК!A2:E588,2,FALSE)","v":{"$error":"#N/A"}},{"$f":"VLOOKUP(B68,СПИСОК!A2:E588,3,FALSE)","v":{"$error":"#N/A"}},{"$f":"VLOOKUP(B68,СПИСОК!A2:E588,4,FALSE)","v":{"$error":"#N/A"}},{"$f":"VLOOKUP(B68,СПИСОК!A2:E588,5,FALSE)","v":{"$error":"#N/A"}}]
[11,null,{"$f":"VLOOKUP(B69,СПИСОК!A3:E589,2,FALSE)","v":{"$error":"#N/A"}},{"$f":"VLOOKUP(B69,СПИСОК!A3:E589,3,FALSE)","v":{"$error":"#N/A"}},{"$f":"VLOOKUP(B69,СПИСОК!A3:E589,4,FALSE)","v":{"$error":"#N/A"}},{"$f":"VLOOKUP(B69,СПИСОК!A3:E589,5,FALSE)","v":{"$error":"#N/A"}}]
[12,null,{"$f":"VLOOKUP(B70,СПИСОК!A4:E590,2,FALSE)","v":{"$error":"#N/A"}},{"$f":"VLOOKUP(B70,СПИСОК!A4:E590,3,FALSE)","v":{"$error":"#N/A"}},{"$f":"VLOOKUP(B70,СПИСОК!A4:E590,4,FALSE)","v":{"$error":"#N/A"}},{"$f":"VLOOKUP(B70,СПИСОК!A4:E590,5,FALSE)","v":{"$error":"#N/A"}}]
[13,null,{"$f":"VLOOKUP(B71,СПИСОК!A5:E591,2,FALSE)","v":{"$error":"#N/A"}},{"$f":"VLOOKUP(B71,СПИСОК!A5:E591,3,FALSE)","v":{"$error":"#N/A"}},{"$f":"VLOOKUP(B71,СПИСОК!A5:E591,4,FALSE)","v":{"$error":"#N/A"}},{"$f":"VLOOKUP(B71,СПИСОК!A5:E591,5,FALSE)","v":{"$error":"#N/A"}}]

{"sheet":"Лист3","index":3,"n_rows":14,"n_cols":9,"rows_kept":14,"cut":false,"hidden":false,"merged":[[0,0,0,11]]}
["РАСПРЕДЕЛЕНИЕ СУДЕЙ ПО КОВРАМ"]
["КОВЕР 1",null,null,null,"КОВЕР 2",null,null,null,"КОВЕР 3"]
["Рук. ковра",null,null,null,"Рук. Ковра",null,null,null,"Рук. ковра"]
[]
[]
[]
[1,null,null,null,1,null,null,null,1]
[2,null,null,null,2,null,null,null,2]
[3,null,null,null,3,null,null,null,3]
[4,null,null,null,4,null,null,null,4]
[5,null,null,null,5,null,null,null,5]
[6,null,null,null,6,null,null,null,6]
[7,null,null,null,7,null,null,null,7]
[8,null,null,null,8,null,null,null,8]